Cogmind - Beta 13 *** ADVENTURER MODE // 2024.04.01 @ 22:49:48 Player: Angelus2k Result: Core destroyed Performance ------------- Evolutions (0) 0 Regions Visited (4) 800 Robots Destroyed (26) 130 Value Destroyed (516) 516 Prototype IDs (0) 0 Alien Tech Used (0) 0 Bonus (-103) -103 TOTAL SCORE: 1343 Bonus ------- Follower Combat Kills 32 Friendly Fire -135 Cogmind --------- Core Integrity 0/250 Matter 270/300 Energy 90/250 System Corruption 5% Temperature Critical (541) Movement Walking (120) Location -9/Mines Parts ------- > --- POWER (1) -------- Ion Engine > --- PROPULSION (2) --- Aluminum Leg > --- UTILITY (2) ------ (None) > --- WEAPON (2) ------- Medium Laser > --- INVENTORY (5) ---- Small Matter Pod (50) Light Assault Rifle Peak State ------------ > --- POWER ------------ Improved Ion Engine > --- PROPULSION ------- Aluminum Leg Aluminum Leg > --- UTILITY ---------- Heat Sink Visual Processing Unit > --- WEAPON ----------- Particle Gun Particle Gun > --- INVENTORY -------- Ion Engine Small Matter Pod EM Pulse Gun Medium Laser Grenade Launcher [Rating: 11] Favorites ----------- Power Ion Engine Engine Ion Engine Propulsion Aluminum Leg Leg Aluminum Leg Utility Heat Sink Device Heat Sink Processor Visual Processing Unit Weapon Particle Gun Energy Gun Particle Gun Launcher Grenade Launcher Build | -11 -10 -10 -10 -9 ------- Run | Yrd Mat Min Exi Min Slots Evolved . | . . . . . Power . | . . . . . Propulsion . | . . . . . Utility . | . . . . . Weapon . | . . . . . Parts Attached 25 | 7 15 . . 3 Power 5 | 1 3 . . 1 Engine 5 | 1 3 . . 1 Core . | . . . . . Reactor . | . . . . . Propulsion 9 | 2 7 . . . Treads . | . . . . . Leg 9 | 2 7 . . . Wheel . | . . . . . Hover . | . . . . . Flight . | . . . . . Utility 3 | 1 2 . . . Device 2 | 1 1 . . . Storage . | . . . . . Processor 1 | . 1 . . . Hackware . | . . . . . Protection . | . . . . . Artifact . | . . . . . Weapon 8 | 3 3 . . 2 Energy Gun 7 | 3 3 . . 1 Energy Cannon . | . . . . . Ballistic Gun . | . . . . . Ballistic Cannon . | . . . . . Launcher 1 | . . . . 1 Special Weapon . | . . . . . Impact Weapon . | . . . . . Slashing Weapon . | . . . . . Piercing Weapon . | . . . . . Special Melee Weapon . | . . . . . Unidentified Prototypes . | . . . . . Parts Lost 8 | . 1 . . 7 Power 2 | . 1 . . 1 Propulsion 1 | . . . . 1 Utility 2 | . . . . 2 Weapon 3 | . . . . 3 Highest Loss Streak 7 | . 1 . . 7 To Critical Strikes . | . . . . . Average Slot Usage (%) 98 | . 98 100 100 93 Engine 14 | . 14 14 14 14 Leg 27 | . 28 28 28 27 Device 13 | . 13 14 14 10 Processor 13 | . 13 14 14 13 Energy Gun 27 | . 27 28 28 27 Naked Turns . | . . . . . Heaviest Build 14 | 7 14 12 12 12 Greatest Support 20 | 20 20 20 20 20 Greatest Overweight (x) . | . . . . . Average Overweight (x) . | . . . . . Largest Inventory Capacity 5 | 5 5 5 5 5 Average Capacity 5 | 5 5 5 5 5 Most Carried 5 | 4 5 5 4 5 Average Carried 4 | 2 4 4 4 4 Final Capacity 5 | 5 5 5 5 5 Final Carried 5 | 4 5 4 4 2 Class Distribution -------------------- 72% | Scavenger-Mutant 27% | Mutant Dominant Class ---------------- Scavenger-Mutant | -10/Materials Scavenger-Mutant | -10/Mines Scavenger-Mutant | -10/Exiles Scavenger-Mutant | -9/Mines Resources | -11 -10 -10 -10 -9 ----------- Run | Yrd Mat Min Exi Min Matter Collected 454 | 270 158 6 . 20 Remotely . | . . . . . Salvage Created 810 | 127 367 162 . 154 Parts 51 | 18 17 8 . 8 Haulers Intercepted . | . . . . . Recyclers Shooed . | . . . . . Parts Field Recycled . | . . . . . Retrieved Matter . | . . . . . Parts Self-Destructed . | . . . . . Prevented . | . . . . . Kills | -11 -10 -10 -10 -9 ------- Run | Yrd Mat Min Exi Min Combat Hostiles Destroyed 23 | 1 10 2 . 10 Guns 22 | 1 10 2 . 9 AOE 1 | . . . . 1 Classes Destroyed 8 | 3 1 2 . 2 Worker 1 | 1 . . . . Tunneler 5 | 4 . 1 . . Recycler 1 | . . 1 . . Watcher 1 | . 1 . . . Swarmer 5 | . . 1 . 4 Grunt 12 | 1 10 1 . . Assembled 6 | . . . . 6 Guerrilla 1 | . . . . 1 Best Kill Streak 6 | 2 3 1 . 6 Combat Bots Only 6 | 1 3 1 . 6 Max Kills in Single Turn 2 | 1 1 1 . 2 Gunslinging 1 | . . . . 1 Exploded 1 | . . . . 1 Melee . | . . . . . Uniques/NPCs Destroyed . | . . . . . Combat | -11 -10 -10 -10 -9 -------- Run | Yrd Mat Min Exi Min Hostile Shots Fired 118 | 6 39 2 . 71 Missed 35 | 2 13 2 . 18 Damage Taken 901 | 33 255 . . 613 Core 271 | 8 76 . . 187 Absorbed by Shields . | . . . . . Ignored by Resistances 258 | 10 82 . . 166 Regen/Repaired (Parts) 34 | . 34 . . . Core Remaining (%) 96 | 96 . . . . Volleys Fired 59 | 11 22 3 . 23 Largest 2 | 2 2 2 . 2 Hottest 130 | 80 130 130 . 130 Shots Fired 116 | 22 45 8 . 41 Gun 114 | 22 45 8 . 39 Cannon . | . . . . . Launcher 2 | . . . . 2 Special . | . . . . . Kinetic . | . . . . . Thermal 109 | 17 45 8 . 39 Explosive 2 | . . . . 2 Electromagnetic 5 | 5 . . . . Robot Hit Streak 15 | 5 10 15 . 7 Robot Miss Streak 4 | 1 1 1 . 4 Penetration Max . | . . . . . Secondary Targets 3 | . 2 . . 1 Max Gunslinging Chain 1 | . 1 . . 1 Shots Hit Robots 78 | 14 32 6 . 26 Core Hits 42 | 7 13 4 . 18 Critical Kills . | . . . . . Critical Parts Destroyed . | . . . . . Critical Strikes 9 | . 3 . . 6 Burn 9 | . 3 . . 6 Melee Attacks . | . . . . . Impact . | . . . . . Slashing . | . . . . . Piercing . | . . . . . Sneak Attacks . | . . . . . Combat Hostiles . | . . . . . Follow-up Attacks . | . . . . . Damage Inflicted 1339 | 162 481 103 . 593 Guns 1169 | 162 481 103 . 423 Cannons . | . . . . . Explosions 170 | . . . . 170 Melee . | . . . . . Ramming . | . . . . . Kinetic . | . . . . . Thermal 1144 | 137 481 103 . 423 Explosive 170 | . . . . 170 Electromagnetic 25 | 25 . . . . Impact . | . . . . . Slashing . | . . . . . Piercing . | . . . . . Highest Corruption 5 | . 2 2 2 5 Average Corruption 1 | . 1 2 2 2 Corruption Purged . | . . . . . Corruption Blocked . | . . . . . Effects 25 | . 11 5 8 1 Message Errors 3 | . 2 . 1 . Matter Fused 6 | . 2 . 3 1 Heat Flow Errors 2 | . . 2 . . Energy Discharges 4 | . 3 . 1 . Parts Fused 1 | . . . 1 . Data Loss (minor) 3 | . 2 . 1 . Misfires 3 | . 1 2 . . Alerts 3 | . 1 1 1 . Overload Shots . | . . . . . Overflow Damage 13 | . . . . 13 Projectiles . | . . . . . Explosions 13 | . . . . 13 Melee . | . . . . . Knockbacks . | . . . . . Impact . | . . . . . Kinetic . | . . . . . Secondary . | . . . . . Self-Inflicted Damage 20 | . . . . 20 Shots 1 | . . . . 1 Rammed . | . . . . . Targets Rammed . | . . . . . Kicked . | . . . . . Crushed . | . . . . . Highest Temperature 557 | 54 321 166 . 557 Average Temperature 135 | 25 87 47 . 254 Received Heat Transfer 220 | 24 156 . . 40 Effects 8 | . . . . 8 Shutdowns 2 | . . . . 2 Damage (minor) 2 | . . . . 2 Damage (major) 3 | . . . . 3 Damage (core) 1 | . . . . 1 Siege Activations . | . . . . . Robots Corrupted . | . . . . . Combat Hostiles . | . . . . . Parts Fried . | . . . . . Impact Corruptions . | . . . . . Robots Melted . | . . . . . Combat Hostiles . | . . . . . Parts Melted 10 | 1 4 1 . 4 Heat Transferred 3371 | 300 1369 222 . 1480 Parts Sabotaged . | . . . . . Parts Stolen . | . . . . . Parts Stripped . | . . . . . Power Chain Reactions . | . . . . . Alert | -11 -10 -10 -10 -9 ------- Run | Yrd Mat Min Exi Min Peak Influence 142 | 45 142 126 . 90 Initial 25 | . 25 6 . . Average 42 | 20 48 34 . 77 Maximum Alert Level . | . . . . . Low Security (%) 100 | 100 100 100 . 100 Level 1 . | . . . . . Level 2 . | . . . . . Level 3 . | . . . . . Level 4 . | . . . . . Level 5 . | . . . . . High Security . | . . . . . Max Security . | . . . . . Squads Dispatched 5 | . 4 1 . . Investigation 5 | . 4 1 . . Extermination . | . . . . . Reinforcement . | . . . . . Assault . | . . . . . Garrison . | . . . . . Intercept . | . . . . . Searches Triggered . | . . . . . Construction Impeded . | . . . . . Haulers Reinforced . | . . . . . Active Scanning Responses . | . . . . . Cargo Convoy Interrupts . | . . . . . Stealth | -11 -10 -10 -10 -9 --------- Run | Yrd Mat Min Exi Min Distress Signals . | . . . . . Communications Jammed . | . . . . . Distress Signals . | . . . . . Times Spotted 34 | 1 11 5 . 17 Peak Tracking Total 6 | 1 3 3 . 6 Tactical Retreats 2 | . . 1 . 1 Traps | -11 -10 -10 -10 -9 ------- Run | Yrd Mat Min Exi Min Traps Triggered 3 | . 3 . . . Indirectly . | . . . . . Trap Hack Attempts . | . . . . . Triggered . | . . . . . Disarmed . | . . . . . Reprogrammed . | . . . . . Reused . | . . . . . Traps Extracted . | . . . . . Installed . | . . . . . Triggered . | . . . . . Machines | -11 -10 -10 -10 -9 ---------- Run | Yrd Mat Min Exi Min Machines Disabled . | . . . . . Max in Single Turn . | . . . . . Machines Repaired . | . . . . . Machines Dismantled . | . . . . . Machines Sabotaged . | . . . . . Overloaded Fab Kills . | . . . . . Hacking | -11 -10 -10 -10 -9 --------- Run | Yrd Mat Min Exi Min Machines Accessed 7 | . 4 2 1 . Terminals 3 | . 3 . . . Fabricators . | . . . . . Repair Stations 1 | . 1 . . . Recycling Units . | . . . . . Scanalyzers . | . . . . . Garrison Access . | . . . . . Total Hacks 44 | . 19 2 23 . Successful 36 | . 11 2 23 . Failed 8 | . 8 . . . Catastrophic . | . . . . . Database Lockouts . | . . . . . Manual . | . . . . . Terminals 14 | . 14 . . . Fabricators . | . . . . . Repair Stations 5 | . 5 . . . Recycling Units . | . . . . . Scanalyzers . | . . . . . Garrison Access . | . . . . . Terminal Hacks 32 | . 7 2 23 . Record 27 | . 4 . 23 . Open Door 2 | . . 2 . . Alert Level 1 | . 1 . . . Locate Traps 1 | . 1 . . . Maintenance Status 1 | . 1 . . . Fabricator Hacks . | . . . . . Repair Station Hacks 4 | . 4 . . . Scan Component 2 | . 2 . . . Repair 2 | . 2 . . . Recycling Unit Hacks . | . . . . . Scanalyzer . | . . . . . Garrison Access Hacks . | . . . . . Unauthorized Hacks . | . . . . . Terminals . | . . . . . Fabricators . | . . . . . Repair Stations . | . . . . . Recycling Units . | . . . . . Scanalyzers . | . . . . . Garrison Access . | . . . . . Data Cores Recovered . | . . . . . Used . | . . . . . Hacking Detections 4 | . 4 . . . Full Trace Events 3 | . 3 . . . Feedback Events 1 | . 1 . . . Corruption 1 | . 1 . . . Feedback Blocked . | . . . . . Robot Schematics Acquired . | . . . . . Robots Built . | . . . . . Authchips . | . . . . . Time . | . . . . . Total Robot Build Rating . | . . . . . Part Schematics Acquired . | . . . . . Parts Built . | . . . . . Authchips . | . . . . . Time . | . . . . . Total Part Build Rating . | . . . . . Parts Repaired 2 | . 2 . . . Time 58 | . 58 . . . Parts Recycled . | . . . . . Recycled Matter . | . . . . . Retrieved Matter . | . . . . . Retrieved Components . | . . . . . Parts Scanalyzed . | . . . . . Part Schematics Acquired . | . . . . . Parts Damaged . | . . . . . Bothacking | -11 -10 -10 -10 -9 ------------ Run | Yrd Mat Min Exi Min Used RIF Installer . | . . . . . Robots Hacked . | . . . . . Non-combat . | . . . . . Combat . | . . . . . Robot Hacks Applied . | . . . . . Relay Couplers Released . | . . . . . Fabnet Peak Effective % . | . . . . . Robots Rewired . | . . . . . Allies Hacked . | . . . . . Hacks Repelled . | . . . . . Allies | -11 -10 -10 -10 -9 -------- Run | Yrd Mat Min Exi Min Total Allies 2 | . . 2 . . Largest Group 2 | . . 2 2 . Highest-Rated Group 42 | . . 42 42 . Highest-Rated Ally 31 | . . 31 31 . Total Orders . | . . . . . Ally Attacks 5 | . . 5 . . Total Damage 83 | . . 83 . . Kills 2 | . . 2 . . Allies Corrupted . | . . . . . Allies Melted . | . . . . . Intel | -11 -10 -10 -10 -9 ------- Run | Yrd Mat Min Exi Min Robot Analysis Total . | . . . . . Derelict Logs Recovered 3 | . . 2 . 1 Drone Launches . | . . . . . Drone Recoveries . | . . . . . Exploration | -11 -10 -10 -10 -9 ------------- Run | Yrd Mat Min Exi Min Turns Passed 2597 | 287 885 678 586 161 Spaces Moved 1973 | 210 638 556 489 80 Core 17 | 17 . . . . Treads . | . . . . . Legs 1956 | 193 638 556 489 80 Wheels . | . . . . . Hover . | . . . . . Flight . | . . . . . Fastest Speed 50 | 50 120 120 120 120 Average Speed 119 | 114 120 120 120 120 Slowest Speed 120 | 120 120 120 120 120 Overloaded Moves . | . . . . . Propulsion Burnouts . | . . . . . Robots Hopped . | . . . . . Cave-ins Triggered . | . . . . . Exploration Rate (%) 59 | 14 87 91 81 25 Regions Visited 4 Branch Regions 3 Pre-discovered Areas 2 | . . 1 1 . Known Exits Taken 1 | . . . 1 . Unknown Exits Taken 3 | 1 1 1 . . Scrap Searched . | . . . . . Spaces Dug . | . . . . . Terrain Destroyed 9 | . . . . 9 Melee . | . . . . . Projectile . | . . . . . AOE 9 | . . . . 9 Terrain Rammed . | . . . . . Walls Destroyed . | . . . . . Machines Disabled . | . . . . . Actions | -11 -10 -10 -10 -9 --------- Run | Yrd Mat Min Exi Min Total 2100 | 232 712 561 488 107 Wait 32 | . 30 2 . . Move 1969 | 209 637 555 488 80 Hop . | . . . . . Pick Up 7 | 5 1 . . 1 Fast Attach 8 | 5 3 . . . Attach 5 | 1 1 . . 3 Detach . | . . . . . Swap 12 | 1 11 . . . Drop 8 | . 7 1 . . Fire 59 | 11 22 3 . 23 Melee . | . . . . . Ram . | . . . . . Kick . | . . . . . Crush . | . . . . . Escape Stasis . | . . . . . Rewire . | . . . . . Trap . | . . . . . Miscellaneous . | . . . . . Route ------- -11/Scrapyard -10/Materials (discovered 3 exits: [*Mat x2] / *Min) -10/Mines (discovered 2 exits: [*Mat] / *Exi) -10/Exiles (discovered 2 exits: *Min x2) -9/Mines (discovered 1 exit: [*Mat]) History --------- Turn | Location | Event 2 | -11/Scrapyard | Met Revision 17 76 | -11/Scrapyard | Discovered new exit (range 8) 288 | -11/Scrapyard | Entered Materials 317 | -10/Materials | Build established: Mutant 444 | -10/Materials | Discovered new exit (range 7) 620 | -10/Materials | Discovered new exit (range 9) 811 | -10/Materials | Discovered new exit (range 6) 898 | -10/Materials | Repaired Heat Sink 930 | -10/Materials | Repaired Particle Gun 1173 | -10/Materials | Entered Mines 1179 | -10/Mines | Discovered new exit (range 14) 1193 | -10/Mines | Met a Derelict bent on vengeance 1212 | -10/Mines | Learned location of Mines (-9) 1226 | -10/Mines | Build established: Scavenger-Mutant 1290 | -10/Mines | Found the Drone Emporium 1321 | -10/Mines | Found a damaged Exp. Sensor Array with a note attached 1658 | -10/Mines | Met a Derelict shopkeep closing up shop 1845 | -10/Mines | Deemed a non-threat by the Exiles lab entrance 1845 | -10/Mines | Discovered new exit (range 5) 1851 | -10/Mines | Entered Exiles 1851 | -10/Exiles | Accompanied by 2 allies 1852 | -10/Exiles | Identified exit to Mines 1881 | -10/Exiles | Led the pair of lost Derelicts to a safe place 1913 | -10/Exiles | Met 8R-AWN 1934 | -10/Exiles | Met EX-HEX 1979 | -10/Exiles | Met EX-DEC 2029 | -10/Exiles | Learned location of Zion (-7) 2169 | -10/Exiles | Visited The Gauntlet 2437 | -10/Exiles | Entered Mines 2460 | -9/Mines | Learned Materials terminal intel 2476 | -9/Mines | Discovered new exit (range 7) 2541 | -9/Mines | Assembled infested the area 2546 | -9/Mines | Assisted by a Guerilla fighting off Assembled 2562 | -9/Mines | Core integrity fell below 50% 2586 | -9/Mines | Core integrity fell below 20% 2599 | -9/Mines | Core destroyed Last Messages --------------- 02585_ as-48901 suffers critical hit (Burn). 02586_ Ion Engine destroyed. 02589_ Aluminum Leg destroyed. 02591_ Overheating: Med. Laser damaged (-36). 02591_ Overheating: Particle Gun damaged (-2). 02591_ Overheating: Aluminum Leg damaged (-10). 02591_ Particle Gun destroyed. 02592_ Power failure, Ion Engine shutdown. 02592_ Overheating: Aluminum Leg damaged (-3). 02592_ as-60911 destroyed. 02595_ as-39236 suffers critical hit (Burn). 02595_ as-96556 destroyed. 02596_ Overheating: Grenade Launcher damaged (-45). 02598_ Knocked back. 02598_ as-39236 destroyed. 02598_ Destroyed Asb. Hover Unit. 02598_ Grenade Launcher destroyed. 02598_ Destroyed Grenade Launcher. 02599_ Overheating: Core damaged (-37). [Achievement: First Step to Greatness] Map ----- +----------------------------------------------------+ | ?????????????????????????????????????????????????? | | ?????????????????????????????????????????????????? | | ?????????????????????????????????????????????????? | | ?????????????????????????????????????????????????? | | ?????????????????????????????????????????????????? | | ?????????????????????????????????????????????????? | | ?????????????????????????????????????????????????? | | ?????????????????????????????????????????????????? | | ??????????????? ?????????????????????????????????? | | ??????????????? ?????????????????????????????????? | | ??????????????? ??????????????? ?????????????????? | | ??????????????? #???????????? ??????????????????? | | ??????????????? #??????????? ??????????????????? | | ???####???????? #??????????? ???????????????????? | | #### ##??????? #??????????? ???????????????????? | | #??????? ??????????? #???????????????????? | | ### #??????# #?????????? #???????????????????? | | ??# #??????# #?????????? #???????????????????? | | ??# ##?????# #?????????? %###?????????????????? | | ??## ##???## ##????????# ??????????????????? | | ??## ##??# #??????##%% #???????????????????? | | ### #??# #?????##=%% ###?????????????????? | | # #### #???##?#!%% ; ??????????????????? | | ## ##### # = #???????????????????? | | #????????????????????? | | # a @ #????????????????????? | | ## % a #????????????????????? | | ?## ## #????????????????????? | | ??## #### #????????????????????? | | ???## #??# ##????????????????????? | | ????## #??# #?????????????????????? | | ?????# ##??# ! ## #????????????????????? | | ?????# ###???# !%#?## ???????????????????? | | ?????## ##?????## |???## ?????????????????? | | ??????####??????? #??????### ???????????????? | | ????????????????##??????????##### ?????????????? | | ?????????????????????????????????? #?????????????? | | ?????????????????????????????????????????????????? | | ?????????????????????????????????????????????????? | | ?????????????????????????????????????????????????? | | | | | | | | | | | | | | | | | | | | | +----------------------------------------------------+ Best States ------------- Heat Dissipation 35 Energy Generation 12 Energy Capacity 265 Matter Stores 300 Matter Capacity 300 Sight Range 18 Terrain Scan Density 10 Resistance: KI 20 Resistance: TH 20 Resistance: EX 20 Resistance: EM 20 Resistance: I 20 Resistance: S 20 Resistance: P 20 Evasion (%) 55 Offensive Hacking 10 Item Schematics ----------------- None Robot Schematics ------------------ None Fabricated ------------ Nothing Alien Tech Used ----------------- None Achievements -------------- Backstab Crack Shot First Step to Greatness Librarian One Hack Too Far Part-time Mechanic Tourist Challenges ------------ None Game ------ Seed CommMetafieldScythe Manual? 0 Play Time 00:33:37 Cumulative 0.5 hours Start 2024.04.01 @ 22:17:43 End 2024.04.01 @ 22:49:48 Sessions 1 Manual Loads 0 Difficulty Adventurer Special Mode None Game No. 1 Rogue 0 Adventurer 1 Explorer 0 Win Type - Total 0 Types 0/0/0/0/0/0/0/0/0 Lore% 4 Gallery% 1 Achievement% 2 Wizard Run 0 Options --------- Layout 0 ASCII 0 Keyboard 0 Movement Mouse Keybinds 0 Fullscreen 2 Font 24/Crisp Map View 76x50 Zoom Use 0% Tactical HUD 1 Map Filters NONE Filters NONE Steam 1 RUN: 850fe060-f602-40e0-bfb7-18f05fcf1c0c